fUSD/lending_fUSD_20260108
["ID","MTS","AMOUNT","RATE_DAILY","PERIOD"]
[401080487,1767910232408,-184.75,0.00011861,2]
[401080489,1767910232418,-982.69,0.00011912,2]
[401080491,1767910232427,-252.00661998,0.00011944,2]
[401080493,1767910232436,-1000.0,0.00011999,2]
[401080494,1767910232445,-15841.45905134,0.00012,2]
[401080495,1767910232456,-100812.63244038,0.00012,2]
[401080496,1767910232467,-206213.53675933,0.00012,2]
[401080498,1767910232477,-20390.39484012,0.00012,2]
[401080512,1767910238259,-334.38916274,0.00011999,2]
[401080513,1767910238268,-500.0,0.00011999,2]
[401080514,1767910238277,-236.27098543,0.00011999,2]
[401080515,1767910238287,-272.56518659,0.00011999,2]
[401080516,1767910238296,-400.62818169,0.00011999,2]
[401080517,1767910238306,-125.08565855,0.00011999,2]
[401080518,1767910238317,-374.91434145,0.00011999,2]
[401080519,1767910238326,-500.61421208,0.00011999,2]
[401080520,1767910238336,-344.26471226,0.00011999,2]
[401080521,1767910238345,-419.26397975,0.00011999,2]
[401080715,1767910240378,-80.73602025,0.00011999,2]
[401080717,1767910240387,-500.0,0.00011999,2]
[401080719,1767910240396,-231.40810775,0.00011999,2]
[401080721,1767910240405,-45.66989366,0.00011999,2]
[401080723,1767910240416,-454.33010634,0.00011999,2]
[401080725,1767910240424,-331.28889466,0.00011999,2]
[401080731,1767910240468,-168.71110534,0.00011999,2]
[401080733,1767910240477,-167.73428703,0.00011999,2]
[401080735,1767910240486,-500.0,0.00011999,2]
[401080737,1767910240495,-500.0,0.00011999,2]
[401080739,1767910240503,-500.0,0.00011999,2]
[401080741,1767910240513,-500.0,0.00011999,2]
[401080743,1767910240522,-500.0,0.00011999,2]
[401080745,1767910240531,-500.0,0.00011999,2]
[401080747,1767910240540,-500.0,0.00011999,2]
[401080749,1767910240549,-396.74107734,0.00011999,2]
[401080751,1767910240560,-103.25892266,0.00011999,2]
[401080753,1767910240569,-500.0,0.00011999,2]
[401080755,1767910240578,-500.0,0.00011999,2]
[401080757,1767910240586,-500.0,0.00011999,2]
[401080759,1767910240595,-500.0,0.00011999,2]
[401080760,1767910240604,-559.9459659,0.00011999,2]
[401080762,1767910240614,-500.0,0.00011999,2]
[401080764,1767910240627,-500.0,0.00011999,2]
[401080766,1767910240636,-500.0,0.00011999,2]
[401080768,1767910240645,-500.0,0.00011999,2]
[401080770,1767910240654,-500.0,0.00011999,2]
[401080772,1767910240665,-500.0,0.00011999,2]
[401080774,1767910240674,-500.0,0.00011999,2]
[401080776,1767910240683,-500.80148648,0.00011999,2]
[401080778,1767910240694,-656741.97690883,0.00012,2]
[401080780,1767910240703,-300.0,0.00012044,2]
[401080782,1767910240712,-9851.21459529,0.00012045,2]
[401080784,1767910240721,-150.0,0.0001209,2]
[401080786,1767910240730,-6371.05312878,0.00012093,2]
[401080788,1767910240739,-151.0,0.00012095,2]
[401080790,1767910240748,-151.0,0.00012095,2]
[401080792,1767910240756,-151.0,0.00012095,2]
[401080794,1767910240765,-151.0,0.00012095,2]
[401080796,1767910240774,-290.63838597,0.00012095,2]
[401080798,1767910240783,-151.0,0.000121,2]
[401080800,1767910240792,-742.77,0.000121,2]
[401080802,1767910240801,-186.42024008,0.00012145,2]
[401080804,1767910240810,-158.10867728,0.00012245,2]
[401080806,1767910240819,-158.10867728,0.00012245,2]
[401080808,1767910240828,-250.08900026,0.00012345,2]
[401080810,1767910240837,-659.3,0.00012349,2]
[401080812,1767910240846,-742.77,0.00012374,2]
[401080813,1767910240855,-157.03274317,0.00012565,2]
[401080815,1767910240865,-171.05172936,0.00012565,2]
[401080817,1767910240876,-500.0,0.00012565,2]
[401080819,1767910240886,-8728.35,0.00012616,2]
[401080821,1767910240897,-500.0,0.0001262,2]
[401080824,1767910240907,-742.77,0.00012648,2]
[401080825,1767910240916,-38384.4,0.00012649,2]
[401080827,1767910240925,-500.0,0.00012675,2]
[401080829,1767910240934,-9851.21459524,0.00012696,2]
[401080831,1767910240943,-500.0,0.00012729,2]
[401080833,1767910240953,-275.32921409,0.00012784,2]
[401080835,1767910240962,-742.77,0.00012922,2]
[401080837,1767910240971,-250.0,0.00013038,2]
[401080839,1767910240980,-195.0,0.00013038,2]
[401080841,1767910240989,-1680.0,0.00013046,2]
[401080843,1767910240999,-255.0,0.00013178,2]
[401080845,1767910241007,-742.77,0.00013196,2]
[401080847,1767910241016,-250.08900026,0.00013271,2]
[401080849,1767910241026,-4251.17897237,0.00013333,2]
[401080851,1767910241036,-581.31,0.00013334,2]
[401080853,1767910241045,-9851.21459524,0.00013346,2]
[401080855,1767910241054,-158.10867728,0.00013376,2]
[401080857,1767910241063,-158.10867728,0.00013376,2]
[401080859,1767910241072,-742.81,0.0001347,2]
[401080861,1767910241081,-1000.0,0.00013568,2]
[401080863,1767910241091,-500.0,0.00013698,2]
[401080865,1767910241100,-500.0,0.00013698,2]
[401080867,1767910241109,-500.0,0.00013698,2]
[401080869,1767910241118,-500.0,0.00013698,2]
[401080871,1767910241128,-500.0,0.00013698,2]
[401080873,1767910241137,-649.16,0.00013698,2]
[401080875,1767910241147,-649.16,0.00013698,2]
[401080877,1767910241155,-649.16,0.00013698,2]
[401080879,1767910241164,-649.16,0.00013698,2]
[401080881,1767910241173,-500.0,0.00013698,2]
[401080883,1767910241183,-500.0,0.00013698,2]
[401080885,1767910241191,-500.0,0.00013698,2]
[401080887,1767910241200,-500.0,0.00013698,2]
[401080889,1767910241209,-500.0,0.00013698,2]
[401080891,1767910241218,-500.0,0.00013698,2]
[401080893,1767910241227,-500.0,0.00013698,2]
[401080895,1767910241236,-550.60903699,0.00013698,2]
[401080897,1767910241245,-500.0,0.00013698,2]
[401080899,1767910241254,-500.0,0.00013698,2]
[401080901,1767910241264,-500.0,0.00013698,2]
[401080903,1767910241273,-500.0,0.00013698,2]
[401080905,1767910241286,-500.0,0.00013698,2]
[401080907,1767910241295,-500.0,0.00013698,2]
[401080909,1767910241304,-506.98336707,0.00013698,2]
[401080911,1767910241313,-500.0,0.00013698,2]
[401080913,1767910241322,-386.45682453,0.00013698,2]
[401080915,1767910241331,-510.914429,0.00013698,2]
[401080917,1767910241339,-200.0,0.00013699,2]
[401080918,1767910241348,-226.98,0.00013699,2]
[401080920,1767910241357,-3240.0,0.00013881,2]
[401080922,1767910241366,-9851.21459524,0.00013997,2]
[401080924,1767910241375,-150.0,0.00014031,2]
[401080926,1767910241384,-1000.0,0.00014037,2]
[401080928,1767910241393,-500.0,0.00014046,2]
[401080930,1767910241402,-250.0,0.00014046,2]
[401080932,1767910241414,-295.72412489,0.00014046,2]
[401080934,1767910241424,-1815.0,0.00014046,2]
[401080936,1767910241433,-500.0,0.00014101,2]
[401080938,1767910241443,-1815.0,0.00014101,2]
[401080940,1767910241451,-252.00661996,0.00014121,2]
[401080942,1767910241461,-500.0,0.00014156,2]
[401080944,1767910241469,-1815.0,0.00014156,2]
[401080946,1767910241478,-250.08900026,0.00014197,2]
[401080948,1767910241487,-150.0,0.0001421,2]
[401080950,1767910241495,-1815.0,0.0001421,2]
[401080952,1767910241504,-1815.0,0.00014265,2]
[401080954,1767910241513,-1815.0,0.0001432,2]
[401080956,1767910241522,-2351.0,0.00014351,2]
[401080958,1767910241531,-433.0,0.00014363,2]
[401080960,1767910241540,-1815.0,0.00014375,2]
[401080962,1767910241550,-226.98,0.00014384,2]
[401080963,1767910241559,-1815.0,0.0001443,2]
[401080965,1767910241567,-1815.0,0.00014484,2]
[401080967,1767910241577,-893.22555293,0.00014494,2]
[401081001,1767910241878,-9999.99,0.00014504,2]
[401081003,1767910241896,-9999.99,0.00014504,2]
[401081005,1767910241905,-14141.06,0.00014504,2]
[401081007,1767910241914,-150.99,0.00014504,2]
[401081009,1767910241923,-199.19,0.00014504,2]
[401081011,1767910241933,-3614.02,0.00014504,2]
[401081013,1767910241942,-158.10867728,0.00014507,2]
[401081015,1767910241951,-158.10867728,0.00014507,2]
[401081017,1767910241960,-1815.0,0.00014539,2]
[401081019,1767910241969,-1815.0,0.00014594,2]
[401081021,1767910241978,-151.0,0.00014634,2]
[401081023,1767910241987,-9851.21459524,0.00014647,2]
[401081024,1767910241996,-1815.0,0.00014649,2]
[401081025,1767910242005,-151.0,0.00014649,2]
[401081026,1767910242013,-151.0,0.00014652,2]
[401081027,1767910242022,-151.0,0.00014661,2]
[401081028,1767910242032,-151.0,0.00014684,2]
[401081029,1767910242041,-151.0,0.00014684,2]
[401081030,1767910242050,-1000.0,0.0001469,2]
[401081031,1767910242059,-151.0,0.00014697,2]
[401081032,1767910242068,-1815.0,0.00014704,2]
[401081033,1767910242078,-1000.0,0.00014709,2]
[401081034,1767910242087,-1000.0,0.00014715,2]
[401081035,1767910242096,-1000.0,0.00014725,2]
[401081036,1767910242105,-1000.0,0.00014746,2]
[401081037,1767910242114,-1815.0,0.00014758,2]
[401081038,1767910242123,-500.0,0.00014763,2]
[401081039,1767910242131,-500.0,0.00014763,2]
[401081040,1767910242140,-500.0,0.00014763,2]
[401081041,1767910242149,-500.0,0.00014763,2]
[401081042,1767910242158,-500.0,0.00014763,2]
[401081043,1767910242166,-165.71915277,0.00014763,2]
[401081045,1767910242175,-192.19716404,0.00014763,2]
[401081047,1767910242184,-500.0,0.00014763,2]
[401081049,1767910242193,-394.05894311,0.00014763,2]
[401081051,1767910242202,-500.0,0.00014763,2]
[401081053,1767910242211,-600.1564652,0.00014763,2]
[401081055,1767910242219,-500.76955814,0.00014763,2]
[401081057,1767910242228,-500.0,0.00014763,2]
[401081059,1767910242237,-500.0,0.00014763,2]
[401081061,1767910242246,-455.21640209,0.00014763,2]
[401081063,1767910242255,-500.0,0.00014763,2]
[401081065,1767910242264,-500.0,0.00014763,2]
[401081067,1767910242273,-500.0,0.00014763,2]
[401081069,1767910242282,-500.0,0.00014763,2]
[401081071,1767910242291,-1815.0,0.00014813,2]
[401081073,1767910242300,-581.31,0.00014816,2]
[401081075,1767910242310,-1815.0,0.00014868,2]
[401081077,1767910242319,-1815.0,0.00014923,2]
[401081079,1767910242327,-160.45,0.00014932,2]
[401081081,1767910242337,-1815.0,0.00014978,2]
[401081083,1767910242346,-151.0,0.00014981,2]
[401081084,1767910242356,-1000.0,0.00015003,2]
[401081086,1767910242365,-1815.0,0.00015032,2]
[401081088,1767910242374,-161.7,0.00015059,2]
[401081090,1767910242383,-226.98,0.00015068,2]
[401081092,1767910242392,-1000.0,0.00015083,2]
[401081094,1767910242401,-1815.0,0.00015087,2]
[401081096,1767910242410,-1000.0,0.00015094,2]
[401081098,1767910242419,-250.08900026,0.00015123,2]
[401081100,1767910242427,-1815.0,0.00015142,2]
[401081102,1767910242436,-1000.0,0.00015142,2]
[401081104,1767910242446,-1000.0,0.00015144,2]
[401081106,1767910242455,-1000.0,0.0001516,2]
[401081108,1767910242464,-1000.0,0.00015183,2]
[401081110,1767910242473,-1815.0,0.00015197,2]
[401081112,1767910242481,-1815.0,0.00015251,2]
[401081114,1767910242491,-9851.21459524,0.00015298,2]
[401081116,1767910242500,-1000.0,0.00015303,2]
[401081118,1767910242509,-1822.0,0.00015306,2]
[401081120,1767910242518,-506.30341667,0.0001531,2]
[401081122,1767910242527,-1000.0,0.0001531,2]
[401081124,1767910242536,-1000.0,0.0001531,2]
[401081126,1767910242546,-1000.0,0.0001531,2]
[401081128,1767910242554,-1000.0,0.0001531,2]
[401081130,1767910242563,-1000.0,0.0001531,2]
[401081132,1767910242572,-1000.0,0.0001531,2]
[401081134,1767910242582,-1000.0,0.0001531,2]
[401081136,1767910242591,-500.0,0.0001531,2]
[401081138,1767910242600,-1000.0,0.0001531,2]
[401081140,1767910242609,-1000.0,0.0001531,2]
[401081142,1767910242620,-1000.0,0.00015398,2]
[401081143,1767910242629,-1000.0,0.00015442,2]
[401081145,1767910242638,-1000.0,0.00015471,2]
[401081147,1767910242647,-1000.0,0.00015498,2]
[401081149,1767910242656,-1000.0,0.00015499,2]
[401081151,1767910242666,-1000.0,0.00015529,2]
[401081153,1767910242676,-250.0,0.0001554,2]
[401081155,1767910242685,-1000.0,0.00015558,2]
[401081158,1767910242696,-736.0,0.00015656,2]
[401081160,1767910242704,-1000.0,0.00015675,2]
[401081161,1767910242713,-1000.0,0.0001569,2]
[401081163,1767910242722,-1000.0,0.00015703,2]
[401081165,1767910242731,-226.98,0.00015753,2]
[401081167,1767910242740,-3292.0,0.00015786,2]
[401081169,1767910242749,-1000.0,0.00015792,2]
[401081171,1767910242757,-1000.0,0.00015812,2]
[401081173,1767910242767,-209.75,0.00015826,2]
[401081175,1767910242775,-1000.0,0.00015858,2]
[401081177,1767910242784,-1500.0,0.00015858,2]
[401081179,1767910242793,-1520.5636209,0.00015858,2]
[401081181,1767910242803,-1000.0,0.00015858,2]
[401081183,1767910242812,-1500.0,0.00015858,2]
[401081185,1767910242821,-1500.0,0.00015858,2]
[401081187,1767910242829,-1000.0,0.00015858,2]
[401081189,1767910242838,-1500.0,0.00015858,2]
[401081191,1767910242847,-1500.0,0.00015858,2]
[401081193,1767910242856,-1000.0,0.00015868,2]
[401081195,1767910242865,-1000.0,0.00015902,2]
[401081197,1767910242874,-1000.0,0.00015918,2]
[401081199,1767910242883,-3548.52,0.00015926,2]
[401081201,1767910242892,-9851.21459524,0.00015948,2]
[401081203,1767910242901,-1000.0,0.0001595,2]
[401081205,1767910242910,-250.031061,0.00016,2]
[401081207,1767910242919,-250.08900026,0.00016048,2]
[401081209,1767910242928,-9999.99,0.00016116,2]
[401081211,1767910242936,-9999.99,0.00016116,2]
[401081213,1767910242948,-1212.07,0.00016116,2]
[401081216,1767910242957,-2502.08,0.00016116,2]
[401081219,1767910242966,-1000.0,0.0001613,2]
[401081221,1767910242975,-1000.0,0.00016167,2]
[401081223,1767910242984,-1000.0,0.00016182,2]
[401081225,1767910242993,-1000.0,0.00016219,2]
[401081227,1767910243002,-581.31,0.00016297,2]
[401081229,1767910243011,-252.00661996,0.00016298,2]
[401081231,1767910243020,-157.72323008,0.00016397,2]
[401081233,1767910243029,-833.0,0.000164,2]
[401081235,1767910243038,-833.0,0.000164,2]
[401081237,1767910243049,-162.0,0.000164,2]
[401081239,1767910243058,-833.0,0.000164,2]
[401081241,1767910243067,-2000.0,0.00016406,2]
[401081243,1767910243077,-2000.0,0.00016406,2]
[401081245,1767910243086,-2000.0,0.00016406,2]
[401081247,1767910243096,-500.0,0.00016437,2]
[401081250,1767910243107,-500.0,0.00016437,2]
[401081252,1767910243116,-500.0,0.00016437,2]
[401081253,1767910243125,-649.16,0.00016437,2]
[401081255,1767910243135,-500.0,0.00016437,2]
[401081257,1767910243144,-500.0,0.00016437,2]
[401081259,1767910243154,-500.0,0.00016437,2]
[401081261,1767910243163,-640.29,0.00016437,2]
[401081263,1767910243172,-500.0,0.00016437,2]
[401081265,1767910243181,-500.0,0.00016437,2]
[401081267,1767910243190,-150.0,0.00016438,2]
[401081269,1767910243199,-4391.8,0.00016438,2]
[401081271,1767910243208,-500.0,0.00016438,2]
[401081273,1767910243218,-500.0,0.00016438,2]
[401081275,1767910243227,-500.0,0.00016438,2]
[401081277,1767910243236,-500.0,0.00016438,2]
[401081279,1767910243246,-500.0,0.00016438,2]
[401081281,1767910243255,-500.0,0.00016438,2]
[401081283,1767910243264,-500.0,0.00016438,2]
[401081285,1767910243273,-500.0,0.00016438,2]
[401081287,1767910243282,-500.0,0.00016438,2]
[401081289,1767910243291,-500.0,0.00016438,2]
[401081291,1767910243301,-500.0,0.00016438,2]
[401081293,1767910243310,-500.0,0.00016438,2]
[401081295,1767910243319,-500.0,0.00016438,2]
[401081297,1767910243329,-500.0,0.00016438,2]
[401081299,1767910243338,-200.00000004,0.00016438,2]
[401081301,1767910243347,-500.0,0.00016438,2]
[401081303,1767910243356,-500.0,0.00016438,2]
[401081305,1767910243366,-500.0,0.00016438,2]
[401081307,1767910243375,-500.0,0.00016438,2]
[401081309,1767910243383,-500.0,0.00016438,2]
[401081311,1767910243392,-24062.0,0.00016438,2]
[401081313,1767910243402,-226.98,0.00016438,2]
[401081315,1767910243411,-800.0,0.00016438,2]
[401081317,1767910243420,-150.0,0.00016493,2]
[401081318,1767910243429,-1000.0,0.00016515,2]
[401081320,1767910243439,-1000.0,0.00016543,2]
[401081323,1767910243448,-150.0,0.00016548,2]
[401081324,1767910243458,-1000.0,0.00016548,2]
[401081327,1767910243467,-209.75,0.0001657,2]
[401081329,1767910243476,-1000.0,0.00016583,2]
[401081331,1767910243486,-9851.21459524,0.00016599,2]
[401081332,1767910243495,-150.0,0.00016602,2]
[401081334,1767910243505,-1000.0,0.00016635,2]
[401081337,1767910243514,-1000.0,0.00016644,2]
[401081339,1767910243524,-295.08159117,0.00016657,2]
[401081340,1767910243533,-1000.0,0.00016698,2]
[401081342,1767910243542,-13937.25,0.00016707,2]
[401081344,1767910243551,-1818.24,0.00016707,2]
[401081346,1767910243561,-4391.8,0.00016712,2]
[401081348,1767910243570,-162.0,0.0001672,2]
[401081350,1767910243580,-833.0,0.0001672,2]
[401081352,1767910243589,-162.0,0.0001672,2]
[401081354,1767910243599,-833.0,0.0001672,2]
[401081356,1767910243608,-162.0,0.0001672,2]
[401081358,1767910243621,-833.0,0.0001672,2]
[401081360,1767910243630,-833.0,0.0001672,2]
[401081362,1767910243640,-833.0,0.0001672,2]
[401081364,1767910243649,-833.0,0.0001672,2]
[401081366,1767910243659,-162.0,0.0001672,2]
[401081368,1767910243667,-833.0,0.0001672,2]
[401081370,1767910243677,-162.0,0.0001672,2]
[401081372,1767910243689,-162.0,0.0001672,2]
[401081375,1767910243700,-162.0,0.0001672,2]
[401081377,1767910243709,-162.0,0.0001672,2]
[401081378,1767910243719,-833.0,0.0001672,2]
[401081381,1767910243728,-1000.0,0.00016744,2]
[401081383,1767910243738,-1000.0,0.00016758,2]
[401081385,1767910243747,-1000.0,0.00016777,2]
[401081386,1767910243756,-1000.0,0.00016807,2]
[401081388,1767910243765,-1100.0,0.00016808,7]
[401081390,1767910243774,-3000.0,0.00016808,7]
[401081392,1767910243783,-1000.0,0.00016832,2]
[401081394,1767910243793,-1000.0,0.00016845,2]
[401081396,1767910243802,-469.50438451,0.00016851,2]
[401081398,1767910243811,-1000.0,0.00016857,2]
[401081400,1767910243821,-1000.0,0.00016884,2]
[401081402,1767910243830,-1000.0,0.00016884,2]
[401081404,1767910243839,-1000.0,0.00016889,2]
[401081407,1767910243849,-272.2442752,0.00016891,2]
[401081409,1767910243859,-560.21304863,0.00016891,2]
[401081410,1767910243868,-1000.0,0.00016895,2]
[401081413,1767910243877,-1000.0,0.00016896,2]
[401081415,1767910243887,-1000.0,0.00016898,2]
[401081417,1767910243896,-1000.0,0.000169,2]
[401081419,1767910243906,-1000.0,0.00016903,2]
[401081421,1767910243915,-1000.0,0.00016904,2]
[401081423,1767910243924,-1000.0,0.00016937,2]
[401081425,1767910243934,-1000.0,0.00016945,2]
[401081427,1767910243942,-2500.0,0.00016954,2]
[401081429,1767910243952,-2500.0,0.00016954,2]
[401081431,1767910243962,-1699.80942896,0.00016954,2]
[401081433,1767910243971,-1000.0,0.00016955,2]
[401081435,1767910243980,-1000.0,0.00016955,2]
[401081437,1767910243990,-1000.0,0.00016956,2]
[401081439,1767910244000,-1000.0,0.00016957,2]
[401081441,1767910244009,-356.0,0.00016959,2]
[401081443,1767910244018,-7567.0,0.00016959,2]
[401081445,1767910244028,-1000.0,0.00016963,2]
[401081447,1767910244038,-1000.0,0.00016968,2]
[401081450,1767910244047,-250.08900026,0.00016974,2]
[401081452,1767910244056,-150.0,0.00016976,2]
[401081454,1767910244065,-157.72323008,0.00016983,2]
[401081457,1767910244074,-151.0,0.00016983,2]
[401081460,1767910244083,-4391.8,0.00016986,2]
[401081462,1767910244093,-150.0,0.00016986,2]
[401081464,1767910244102,-659602.41,0.00016986,2]
[401081466,1767910244111,-1378.0,0.00016991,2]
[401081468,1767910244120,-1000.0,0.00016997,2]
[401081470,1767910244130,-500.0,0.00017,5]
[401081472,1767910244139,-500.0,0.00017,2]
[401081474,1767910244148,-500.0,0.00017,5]
[401081476,1767910244157,-526.24793571,0.00017,2]
[401081478,1767910244166,-500.0,0.00017,2]
[401081480,1767910244176,-500.0,0.00017,2]
[401081482,1767910244185,-4000.0,0.00017,2]
[401081484,1767910244194,-1000.0,0.00017007,2]
[401081486,1767910244203,-1378.0,0.00017007,2]
[401081488,1767910244213,-1000.0,0.00017011,2]
[401081490,1767910244222,-1378.0,0.00017012,2]
[401081492,1767910244232,-1000.0,0.00017024,2]
[401081494,1767910244241,-1000.0,0.00017029,2]
[401081496,1767910244251,-1000.0,0.00017037,2]
[401081497,1767910244260,-833.0,0.0001704,2]
[401081499,1767910244269,-162.0,0.0001704,2]
[401081501,1767910244278,-833.0,0.0001704,2]
[401081503,1767910244288,-833.0,0.0001704,2]
[401081506,1767910244297,-162.0,0.0001704,2]
[401081508,1767910244306,-162.0,0.0001704,2]
[401081510,1767910244315,-833.0,0.0001704,2]
[401081512,1767910244324,-833.0,0.0001704,2]
[401081513,1767910244333,-833.0,0.0001704,2]
[401081516,1767910244342,-163.0,0.0001704,2]
[401081518,1767910244352,-833.0,0.0001704,2]
[401081520,1767910244360,-500.0,0.0001704,2]
[401081522,1767910244370,-649.16,0.0001704,2]
[401081524,1767910244379,-577.6208976,0.0001704,2]
[401081525,1767910244388,-1000.0,0.00017046,2]
[401081527,1767910244397,-1000.0,0.00017046,2]
[401081529,1767910244406,-1378.0,0.00017048,2]
[401081532,1767910244415,-1378.0,0.00017056,2]
[401081533,1767910244424,-1000.0,0.00017064,2]
[401081535,1767910244433,-1252.0,0.00017071,2]
[401081537,1767910244442,-221.51285843,0.00017074,2]
[401081539,1767910244452,-560.21304861,0.00017093,2]
[401081541,1767910244461,-322.6107,0.00017099,2]
[401081544,1767910244470,-151.0,0.00017099,2]
[401081546,1767910244479,-695.39793187,0.00017099,2]
[401081547,1767910244488,-9211.34798985,0.00017099,2]
[401081549,1767910244497,-250.0,0.00017099,2]
[401081551,1767910244506,-1500.0,0.00017099,2]
[401081553,1767910244515,-1500.0,0.00017099,2]
[401081555,1767910244524,-250.0,0.00017099,2]
[401081557,1767910244533,-1500.0,0.00017099,2]
[401081559,1767910244541,-250.0,0.00017099,2]
[401081561,1767910244550,-1500.0,0.00017099,2]
[401081563,1767910244560,-250.0,0.00017099,2]
[401081565,1767910244570,-1500.0,0.00017099,2]
[401081567,1767910244579,-250.0,0.00017099,2]
[401081570,1767910244593,-151.0,0.00017099,2]
[401081572,1767910244602,-1500.0,0.00017099,2]
[401081574,1767910244611,-394.3952879,0.00017099,2]
[401081576,1767910244624,-151.0,0.00017099,2]
[401081578,1767910244633,-1500.0,0.00017099,2]
[401081580,1767910244642,-162.7023203,0.00017099,2]
[401081582,1767910244651,-1500.0,0.00017099,2]
[401081584,1767910244662,-1500.0,0.00017099,2]
[401081586,1767910244671,-1500.0,0.00017099,2]
[401081588,1767910244681,-578.20924308,0.00017099,2]
[401081590,1767910244692,-1500.0,0.00017099,2]
[401081592,1767910244701,-1500.0,0.00017099,2]
[401081594,1767910244710,-359.76179104,0.00017099,2]
[401081596,1767910244719,-201.93286099,0.00017099,2]
[401081598,1767910244728,-500.0,0.00017099,2]
[401081600,1767910244737,-500.0,0.00017099,2]
[401081602,1767910244747,-500.0,0.00017099,2]
[401081604,1767910244756,-553.64373807,0.00017099,2]
[401081606,1767910244765,-500.0,0.00017099,2]
[401081608,1767910244773,-500.0,0.00017099,2]
[401081610,1767910244783,-500.0,0.00017099,2]
[401081612,1767910244792,-500.0,0.00017099,2]
[401081614,1767910244802,-500.0,0.00017099,2]
[401081616,1767910244811,-500.0,0.00017099,2]
[401081618,1767910244821,-500.0,0.00017099,2]
[401081620,1767910244830,-500.0,0.00017099,2]
[401081622,1767910244839,-500.0,0.00017099,2]
[401081624,1767910244848,-500.0,0.00017099,2]
[401081626,1767910244857,-500.0,0.00017099,2]
[401081628,1767910244866,-500.0,0.00017099,2]
[401081630,1767910244875,-500.0,0.00017099,2]
[401081632,1767910244884,-500.0,0.00017099,2]
[401081634,1767910244893,-500.0,0.00017099,2]
[401081636,1767910244902,-500.0,0.00017099,2]
[401081638,1767910244912,-500.0,0.00017099,2]
[401081640,1767910244922,-500.0,0.00017099,2]
[401081642,1767910244931,-500.0,0.00017099,2]
[401081644,1767910244940,-500.0,0.00017099,2]
[401081646,1767910244949,-500.0,0.00017099,2]
[401081648,1767910244960,-500.0,0.00017099,2]
[401081650,1767910244972,-500.0,0.00017099,2]
[401081652,1767910244982,-500.0,0.00017099,2]
[401081654,1767910244991,-500.0,0.00017099,2]
[401081656,1767910245001,-500.0,0.00017099,2]
[401081658,1767910245011,-500.0,0.00017099,2]
[401081660,1767910245020,-500.0,0.00017099,2]
[401081662,1767910245029,-500.0,0.00017099,2]
[401081664,1767910245038,-2000.0,0.00017099,2]
[401081666,1767910245048,-500.0,0.00017099,2]
[401081668,1767910245057,-500.0,0.00017099,2]
[401081670,1767910245067,-500.0,0.00017099,2]
[401081672,1767910245078,-2000.0,0.00017099,2]
[401081675,1767910245087,-260.34840278,0.00017099,2]
[401081677,1767910245097,-2000.0,0.00017099,2]
[401081679,1767910245106,-2000.0,0.00017099,2]
[401081681,1767910245116,-2000.0,0.00017099,2]
[401081683,1767910245125,-620.0,0.00017099,2]
[401081685,1767910245134,-2000.0,0.00017099,2]
[401081687,1767910245146,-2000.0,0.00017099,2]
[401081689,1767910245155,-2000.0,0.00017099,2]
[401081691,1767910245164,-2000.0,0.00017099,2]
[401081693,1767910245174,-2000.0,0.00017099,2]